Cogmind - Beta 13 @@@ ROGUE MODE // 2024.07.05 @ 11:17:54 Player: AntiGoose Result: Destroyed by 2R-2RW(R) with Subdweller Machine Gun Performance ------------- Evolutions (0) 0 Regions Visited (3) 600 Robots Destroyed (26) 130 Value Destroyed (584) 584 Prototype IDs (0) 0 Alien Tech Used (0) 0 Bonus (0) 0 TOTAL SCORE: 1314 Bonus ------- None Cogmind --------- Core Integrity 0/250 Matter 284/300 Energy 250/250 System Corruption 0% Temperature Cool (0) Movement Core (850) Ox16 Location -10/Subcaves Parts ------- > --- POWER (1) -------- Ion Engine > --- PROPULSION (2) --- (None) > --- UTILITY (2) ------ High-capacity Storage Unit Signal Interpreter > --- WEAPON (2) ------- Beam Cannon Heavy Assault Rifle > --- INVENTORY (20) --- Compact Matter Pod (150) Structural Scanner Visual Processing Unit Sensor Array Experimental Sensor Array Terrain Scan Processor Transport Network Coupler Beam Cannon Shotgun Mining Laser Peak State ------------ > --- POWER ------------ Ion Engine > --- PROPULSION ------- Light Treads Light Treads > --- UTILITY ---------- Huge Storage Unit Terrain Scanner > --- WEAPON ----------- Heavy Assault Rifle Shotgun > --- INVENTORY -------- Ion Engine Light Ion Engine Structural Scanner Sensor Array Terrain Scan Processor Heavy Assault Rifle Heavy Assault Rifle Shotgun Mining Laser Welding Torch [Rating: 10] Favorites ----------- Power Ion Engine Engine Ion Engine Propulsion Light Treads Treads Light Treads Wheel Subdweller Monowheel Utility High-capacity Storage Unit Device Terrain Scanner Storage High-capacity Storage Unit Processor Signal Interpreter Weapon Heavy Assault Rifle Energy Cannon Beam Cannon Ballistic Gun Heavy Assault Rifle Launcher Grenade Launcher Special Weapon Mining Laser Build | -11 -10 -10 -10 ------- Run | Yrd Mat Min Sub Slots Evolved . | . . . . Power . | . . . . Propulsion . | . . . . Utility . | . . . . Weapon . | . . . . Parts Attached 23 | 7 12 1 3 Power 3 | 2 1 . . Engine 3 | 2 1 . . Core . | . . . . Reactor . | . . . . Propulsion 3 | 2 . . 1 Treads 2 | 2 . . . Leg . | . . . . Wheel 1 | . . . 1 Hover . | . . . . Flight . | . . . . Utility 6 | 1 5 . . Device 2 | . 2 . . Storage 3 | 1 2 . . Processor 1 | . 1 . . Hackware . | . . . . Protection . | . . . . Artifact . | . . . . Weapon 11 | 2 6 1 2 Energy Gun . | . . . . Energy Cannon 1 | . . . 1 Ballistic Gun 7 | 2 4 . 1 Ballistic Cannon . | . . . . Launcher 2 | . 1 1 . Special Weapon 1 | . 1 . . Impact Weapon . | . . . . Slashing Weapon . | . . . . Piercing Weapon . | . . . . Special Melee Weapon . | . . . . Unidentified Prototypes . | . . . . Parts Lost 7 | . 1 2 4 Power . | . . . . Propulsion 3 | . . 1 2 Utility 1 | . 1 . . Weapon 3 | . . 1 2 Highest Loss Streak 2 | . 1 1 2 To Critical Strikes . | . . . . Average Slot Usage (%) 89 | . 94 88 83 Engine 14 | . 14 14 14 Treads 18 | . 28 18 4 Wheel 1 | . . . 7 Device 2 | . 6 . . Storage 14 | . 14 14 14 Processor 9 | . 2 14 14 Energy Cannon 1 | . . . 6 Ballistic Gun 16 | . 22 14 14 Launcher 9 | . 5 12 7 Naked Turns . | . . . . Heaviest Build 92 | 13 92 51 51 Greatest Support 40 | 40 40 40 20 Greatest Overweight (x) 16 | 1 2 2 16 Average Overweight (x) 1 | . 1 1 2 Largest Inventory Capacity 25 | 8 25 20 20 Average Capacity 20 | 7 21 20 20 Most Carried 13 | 2 12 13 13 Average Carried 10 | . 9 12 11 Final Capacity 20 | 8 20 20 20 Final Carried 13 | 2 12 13 10 Class Distribution -------------------- 100% | Mutant Dominant Class ---------------- Mutant | -10/Materials Mutant | -10/Mines Mutant | -10/Subcaves Resources | -11 -10 -10 -10 ----------- Run | Yrd Mat Min Sub Matter Collected 958 | 244 411 190 113 Remotely . | . . . . Salvage Created 555 | . 323 180 52 Parts 42 | . 28 11 3 Haulers Intercepted . | . . . . Recyclers Shooed 1 | . 1 . . Parts Field Recycled . | . . . . Retrieved Matter . | . . . . Parts Self-Destructed 6 | . . . 6 Prevented . | . . . . Kills | -11 -10 -10 -10 ------- Run | Yrd Mat Min Sub Combat Hostiles Destroyed 20 | . 9 10 1 Guns 11 | . 7 3 1 AOE 9 | . 2 7 . Classes Destroyed 8 | . 7 . 1 Worker 1 | . 1 . . Builder 2 | . 2 . . Recycler 1 | . 1 . . Operator 1 | . 1 . . Watcher 1 | . 1 . . Swarmer 10 | . 4 6 . Grunt 9 | . 5 4 . Subdweller 1 | . . . 1 Best Kill Streak 3 | . 3 3 1 Combat Bots Only 3 | . 3 3 1 Max Kills in Single Turn 2 | . 2 2 1 Gunslinging 1 | . 1 . . Exploded 2 | . 1 2 . Melee . | . . . . Uniques/NPCs Destroyed . | . . . . Combat | -11 -10 -10 -10 -------- Run | Yrd Mat Min Sub Hostile Shots Fired 128 | . 74 28 26 Missed 39 | . 21 9 9 Damage Taken 1259 | . 543 230 486 Core 270 | . 88 31 151 Absorbed by Shields . | . . . . Core Remaining (%) 100 | 100 . . . Volleys Fired 73 | . 43 20 10 Largest 2 | . 2 2 2 Hottest 100 | . 100 53 83 Shots Fired 126 | . 75 31 20 Gun 98 | . 68 20 10 Cannon 7 | . . . 7 Launcher 20 | . 6 11 3 Special 1 | . 1 . . Kinetic 98 | . 68 20 10 Thermal 8 | . 1 . 7 Explosive 20 | . 6 11 3 Electromagnetic . | . . . . Robot Hit Streak 15 | . 5 12 15 Robot Miss Streak 5 | . 5 3 2 Penetration Max . | . . . . Secondary Targets 1 | . 1 . . Max Gunslinging Chain 1 | . 1 . . Shots Hit Robots 75 | . 38 21 16 Core Hits 37 | . 22 14 1 Critical Kills . | . . . . Critical Parts Destroyed 2 | . 2 . . Critical Strikes 2 | . 2 . . Destroy 2 | . 2 . . Melee Attacks . | . . . . Impact . | . . . . Slashing . | . . . . Piercing . | . . . . Sneak Attacks . | . . . . Combat Hostiles . | . . . . Follow-up Attacks . | . . . . Damage Inflicted 1479 | . 727 723 29 Guns 696 | . 497 170 29 Cannons . | . . . . Explosions 783 | . 230 553 . Melee . | . . . . Ramming . | . . . . Kinetic 696 | . 497 170 29 Thermal . | . . . . Explosive 783 | . 230 553 . Electromagnetic . | . . . . Impact . | . . . . Slashing . | . . . . Piercing . | . . . . Highest Corruption . | . . . . Average Corruption . | . . . . Corruption Purged . | . . . . Corruption Blocked . | . . . . Overload Shots . | . . . . Overflow Damage 35 | . 30 5 . Projectiles . | . . . . Explosions 35 | . 30 5 . Melee . | . . . . Knockbacks . | . . . . Impact . | . . . . Kinetic . | . . . . Secondary . | . . . . Self-Inflicted Damage 174 | . 75 32 67 Shots 8 | . 3 3 2 Rammed . | . . . . Targets Rammed . | . . . . Kicked . | . . . . Crushed . | . . . . Highest Temperature 24 | . 24 24 . Average Temperature 9 | . 9 9 . Received Heat Transfer 207 | . 81 114 12 Siege Activations . | . . . . Robots Corrupted . | . . . . Combat Hostiles . | . . . . Parts Fried . | . . . . Impact Corruptions . | . . . . Robots Melted . | . . . . Combat Hostiles . | . . . . Parts Melted . | . . . . Heat Transferred . | . . . . Parts Sabotaged . | . . . . Parts Stolen . | . . . . Parts Stripped . | . . . . Power Chain Reactions . | . . . . Alert | -11 -10 -10 -10 ------- Run | Yrd Mat Min Sub Peak Influence 222 | . 222 175 . Initial . | . . . . Average 65 | . 79 55 . Maximum Alert Level 1 | . 1 . . Low Security (%) 99 | 100 99 100 . Level 1 . | . . . . Level 2 . | . . . . Level 3 . | . . . . Level 4 . | . . . . Level 5 . | . . . . High Security . | . . . . Max Security . | . . . . Squads Dispatched 3 | . 3 . . Investigation 1 | . 1 . . Extermination . | . . . . Reinforcement 2 | . 2 . . Assault . | . . . . Garrison . | . . . . Intercept . | . . . . Searches Triggered . | . . . . Construction Impeded . | . . . . Haulers Reinforced . | . . . . Active Scanning Responses . | . . . . Cargo Convoy Interrupts . | . . . . Stealth | -11 -10 -10 -10 --------- Run | Yrd Mat Min Sub Distress Signals 2 | . 2 . . Communications Jammed . | . . . . Distress Signals . | . . . . Times Spotted 37 | . 25 9 3 Peak Tracking Total 5 | . 5 3 2 Tactical Retreats 2 | . 2 . . Traps | -11 -10 -10 -10 ------- Run | Yrd Mat Min Sub Traps Triggered 2 | . . . 2 Indirectly . | . . . . Trap Hack Attempts . | . . . . Triggered . | . . . . Disarmed . | . . . . Reprogrammed . | . . . . Reused . | . . . . Traps Extracted . | . . . . Installed . | . . . . Triggered . | . . . . Machines | -11 -10 -10 -10 ---------- Run | Yrd Mat Min Sub Machines Disabled 6 | . 3 3 . Max in Single Turn 2 | . 2 2 . Machines Repaired . | . . . . Machines Dismantled . | . . . . Machines Sabotaged . | . . . . Overloaded Fab Kills . | . . . . Hacking | -11 -10 -10 -10 --------- Run | Yrd Mat Min Sub Machines Accessed 4 | . 4 . . Terminals 3 | . 3 . . Fabricators . | . . . . Repair Stations 1 | . 1 . . Recycling Units . | . . . . Scanalyzers . | . . . . Garrison Access . | . . . . Total Hacks 12 | . 12 . . Successful 3 | . 3 . . Failed 9 | . 9 . . Catastrophic 2 | . 2 . . Database Lockouts . | . . . . Manual 5 | . 5 . . Terminals 9 | . 9 . . Fabricators . | . . . . Repair Stations 3 | . 3 . . Recycling Units . | . . . . Scanalyzers . | . . . . Garrison Access . | . . . . Terminal Hacks 3 | . 3 . . Branch Access Points 1 | . 1 . . Investigation Status 1 | . 1 . . Assault Status 1 | . 1 . . Fabricator Hacks . | . . . . Repair Station Hacks . | . . . . Recycling Unit Hacks . | . . . . Scanalyzer . | . . . . Garrison Access Hacks . | . . . . Unauthorized Hacks . | . . . . Terminals . | . . . . Fabricators . | . . . . Repair Stations . | . . . . Recycling Units . | . . . . Scanalyzers . | . . . . Garrison Access . | . . . . Data Cores Recovered . | . . . . Used . | . . . . Hacking Detections 4 | . 4 . . Full Trace Events 1 | . 1 . . Feedback Events . | . . . . Feedback Blocked . | . . . . Robot Schematics Acquired . | . . . . Robots Built . | . . . . Authchips . | . . . . Time . | . . . . Total Robot Build Rating . | . . . . Part Schematics Acquired . | . . . . Parts Built . | . . . . Authchips . | . . . . Time . | . . . . Total Part Build Rating . | . . . . Parts Repaired . | . . . . Time . | . . . . Parts Recycled . | . . . . Recycled Matter . | . . . . Retrieved Matter . | . . . . Retrieved Components . | . . . . Parts Scanalyzed . | . . . . Part Schematics Acquired . | . . . . Parts Damaged . | . . . . Bothacking | -11 -10 -10 -10 ------------ Run | Yrd Mat Min Sub Used RIF Installer . | . . . . Robots Hacked . | . . . . Non-combat . | . . . . Combat . | . . . . Robot Hacks Applied . | . . . . Relay Couplers Released . | . . . . Fabnet Peak Effective % . | . . . . Robots Rewired . | . . . . Allies Hacked . | . . . . Hacks Repelled . | . . . . Allies | -11 -10 -10 -10 -------- Run | Yrd Mat Min Sub Total Allies . | . . . . Largest Group . | . . . . Highest-Rated Group . | . . . . Highest-Rated Ally . | . . . . Total Orders . | . . . . Ally Attacks . | . . . . Total Damage . | . . . . Kills . | . . . . Allies Corrupted . | . . . . Allies Melted . | . . . . Intel | -11 -10 -10 -10 ------- Run | Yrd Mat Min Sub Robot Analysis Total . | . . . . Derelict Logs Recovered 2 | . . 1 1 Drone Launches . | . . . . Drone Recoveries . | . . . . Exploration | -11 -10 -10 -10 ------------- Run | Yrd Mat Min Sub Turns Passed 3583 | 65 1277 1450 791 Spaces Moved 1354 | 36 417 478 423 Core 10 | 5 . . 5 Treads 1015 | 31 417 478 89 Legs . | . . . . Wheels 329 | . . . 329 Hover . | . . . . Flight . | . . . . Fastest Speed 50 | 50 160 240 130 Average Speed 243 | 147 265 289 178 Slowest Speed 850 | 160 320 320 850 Overloaded Moves . | . . . . Propulsion Burnouts . | . . . . Robots Hopped . | . . . . Cave-ins Triggered . | . . . . Exploration Rate (%) 47 | 3 58 93 37 Regions Visited 3 Branch Regions 2 Pre-discovered Areas . | . . . . Known Exits Taken 2 | . 1 1 . Unknown Exits Taken 1 | 1 . . . Scrap Searched 2 | . . 1 1 Spaces Dug 1 | . 1 . . Terrain Destroyed 81 | . 4 60 17 Melee . | . . . . Projectile 1 | . 1 . . AOE 80 | . 3 60 17 Terrain Rammed . | . . . . Walls Destroyed . | . . . . Machines Disabled . | . . . . Actions | -11 -10 -10 -10 --------- Run | Yrd Mat Min Sub Total 1506 | 45 510 513 438 Wait 22 | 2 7 13 . Move 1351 | 35 416 477 423 Hop . | . . . . Pick Up 26 | 1 22 2 1 Fast Attach 6 | 6 . . . Attach 7 | . 3 1 3 Detach . | . . . . Swap 10 | 1 9 . . Drop 11 | . 10 . 1 Fire 73 | . 43 20 10 Melee . | . . . . Ram . | . . . . Kick . | . . . . Crush . | . . . . Escape Stasis . | . . . . Rewire . | . . . . Trap . | . . . . Miscellaneous . | . . . . Route ------- -11/Scrapyard -10/Materials (discovered 4 exits: *Mat x2 / *Min x2) -10/Mines (discovered 3 exits: *Mat x2 / *Sub) -10/Subcaves History --------- Turn | Location | Event 5 | -11/Scrapyard | Discovered new exit (range 16) 66 | -11/Scrapyard | Entered Materials 111 | -10/Materials | Discovered new exit (range 16) 216 | -10/Materials | Discovered new exit (range 11) 309 | -10/Materials | Build established: Mutant 472 | -10/Materials | Identified exit to Mines 1099 | -10/Materials | Discovered new exit (range 3) 1172 | -10/Materials | Discovered new exit (range 7) 1343 | -10/Materials | Entered Mines 1401 | -10/Mines | Met a Derelict bent on vengeance 1791 | -10/Mines | Found a damaged Exp. Sensor Array with a note attached 1796 | -10/Mines | Found Prototype Device 1897 | -10/Mines | Discovered new exit (range 13) 1920 | -10/Mines | Learned 4 Materials zone layouts 2095 | -10/Mines | Identified exit to Materials 2508 | -10/Mines | Discovered exit to Materials (range 12) 2777 | -10/Mines | Discovered new exit (range 5) 2786 | -10/Mines | Identified exit to Subcaves 2793 | -10/Mines | Entered Subcaves 2807 | -10/Subcaves | Learned Materials stockpile data 3080 | -10/Subcaves | Core integrity fell below 50% 3578 | -10/Subcaves | Core integrity fell below 20% 3584 | -10/Subcaves | Destroyed by 2R-2RW(R) with Subdweller Machine Gun Last Messages --------------- Acquired Sub. Monowheel. Subatomizers dissect the Sub. Optics. Acquired 40 matter. Acquired 27 matter. Triggered Piercing Trap. Spikes shoot up from the floor. Critical hit (Impale). Grenade Launcher destroyed. Critical hit (Impale). Hvy. Assault Rifle destroyed. Acquired 14 matter. Acquired 6 matter. Triggered Piercing Trap. Spikes shoot up from the floor. Searching scrap... Found Piercing Trap. Found Sub. Optics. Found 23 Matter. Subatomizers dissect the Sub. Optics. Sub. Monowheel destroyed. Map ----- +----------------------------------------------------+ | ???????????????# #??# #????????# # | | ???????????????# #???# #?????###? | | ???????????????# #??## ###??# #?? | | ???????????????# #### ### ???# | | ???????????????# ## ???? | | ???????????????## #??????# | | ????????????????## #??????# | | ?????????????????## ### ##?????# | | ??????????????????## ### ##?#### | | ???????????????????# ### | | ???????????????????# ## | | ???????????????????# | | ???????????????????# | | ??????????????????# # | | ?????????????????# ## ## | | ?????????????????## ######## ### | | ??????????????????#######?????## #######?# | | ?????????????????????## ##?????# ##?????## | | ?????????????????????# #??#### #?????# | | ?????????????????###?# #?### ##???### | | ????????????????## ### ### ##??## | | ???????????????## #??# | | ???????????????#" " #??# | | ???????????????#" " ## ##??### | | ???????????????## ""## ##?????## | | ????????????????#R@ ## ## ##########???## | | ??????????????# R #########?????# ##### | | ??????????????##""##?????????????# | | ??????????????# "#??????????????# | | ??????????????## "#??????????????## ## | | ???????????????# "????????????????# #### | | ???????????????##?????????????????## #??? | | ???????????????????????????????????## ##??? | | ????????????????????????????????????###???? | | ??????????????????????????????????????????? | | ??????????????????????????????????????????? | | ??????????????????????????????????????????? | | ??????????????????????????????????????????? | | ??????????????????????????????????????????? | | ??????????????????????????????????????????? | | ??????????????????????????????????????????? | | ??????????????????????????????????????????? | | ??????????????????????????????????????????? | | ??????????????????????????????????????????? | | ??????????????????????????????????????????? | | ??????????????????????????????????????????? | | ??????????????????????????????????????????? | | ??????????????????????????????????????????? | | ??????????????????????????????????????????? | | ??????????????????????????????????????????? | +----------------------------------------------------+ Best States ------------- Heat Dissipation 25 Energy Generation 10 Energy Capacity 250 Matter Stores 300 Matter Capacity 300 Sight Range 16 Terrain Scan Range 14 Terrain Scan Density 10 Evasion (%) 40 Recoil Reduction 2 Item Schematics ----------------- None Robot Schematics ------------------ None Fabricated ------------ Nothing Alien Tech Used ----------------- None Achievements -------------- None Challenges ------------ None Game ------ Seed GravityArmageddonTrap Manual? 0 Play Time 00:18:48 Cumulative 6.1 hours Start 2024.07.05 @ 11:01:38 End 2024.07.05 @ 11:17:54 Sessions 1 Manual Loads 0 Difficulty Rogue Special Mode None Game No. 16 Rogue 10 Adventurer 6 Explorer 0 Win Type - Total 0 Types 0/0/0/0/0/0/0/0/0 Lore% 7 Gallery% 11 Achievement% 11 Wizard Run 0 Options --------- Layout 1 ASCII 0 Keyboard 0 Movement Mouse Keybinds 0 Fullscreen 1 Font 32/SmallcapsGlow Map View 50x35 Zoom Use 0% Tactical HUD 0 Map Filters NONE Filters NONE Steam 1 RUN: 988ec409-aae8-4950-a262-4076f37b1a4b